bitfinex/quotes_BTCUSD_20220115
["timestamp","ask_amount","ask_price","bid_price","bid_amount"]
[1642254048456,0.058253,42925.0,42917.0,0.3141278]
[1642254048857,0.94629008,42926.0,42917.0,0.2694278]
[1642254049497,0.84629008,42926.0,42917.0,0.2694278]
[1642254049700,0.94629008,42926.0,42917.0,0.2694278]
[1642254050102,0.12214219,42925.0,42917.0,0.2694278]
[1642254050502,0.12214219,42925.0,42912.0,0.2874]
[1642254051303,0.12214219,42925.0,42918.0,0.68478161]
[1642254051502,0.1189309,42925.0,42918.0,1.00398875]
[1642254051701,0.1771839,42925.0,42918.0,1.00398875]
[1642254052605,0.1771839,42925.0,42920.0,0.58748089]
[1642254053748,0.1771839,42925.0,42920.0,0.54288089]
[1642254056054,0.058253,42925.0,42920.0,0.54288089]
[1642254056699,0.94629008,42926.0,42920.0,0.54288089]
[1642254056899,0.11783448,42925.0,42920.0,0.54288089]
[1642254057500,0.11799065,42925.0,42920.0,0.54288089]
[1642254057700,0.17624365,42925.0,42920.0,0.54288089]
[1642254058100,0.058253,42925.0,42920.0,0.54288089]
[1642254058707,0.058253,42925.0,42919.0,1.63658093]
[1642254059004,0.94629008,42926.0,42919.0,1.63658093]
[1642254059804,0.61227012,42926.0,42920.0,0.3406778]
[1642254060005,0.33,42926.0,42920.0,0.4570889]
[1642254060206,0.23,42926.0,42920.0,0.4570889]
[1642254060656,0.23,42926.0,42920.0,1.14187051]
[1642254060855,0.23,42926.0,42921.0,0.32925272]
[1642254061455,0.23,42926.0,42924.0,0.68478161]
[1642254061656,0.23,42926.0,42924.0,0.74301683]
[1642254062257,0.23,42926.0,42925.0,0.68478161]
[1642254062456,0.22,42926.0,42925.0,0.68478161]
[1642254062859,0.22,42926.0,42925.0,1.11323173]
[1642254063457,0.22,42926.0,42925.0,1.01446025]
[1642254063862,0.22,42926.0,42925.0,0.96966025]
[1642254066005,0.22,42926.0,42925.0,1.06843173]
[1642254066805,0.22,42926.0,42925.0,0.38365012]
[1642254067607,0.22,42926.0,42925.0,0.96885606]
[1642254068351,0.22,42926.0,42925.0,0.38365012]
[1642254068753,0.22,42926.0,42924.0,0.58520594]
[1642254069954,0.22,42926.0,42920.0,0.3406778]
[1642254070354,0.22,42926.0,42920.0,0.51453852]
[1642254070754,0.22,42926.0,42924.0,0.58557597]
[1642254071153,0.22,42926.0,42924.0,0.58057597]
[1642254073906,0.22,42926.0,42924.0,0.53577597]
[1642254076764,0.22,42926.0,42924.0,0.5940128]
[1642254077255,0.22,42926.0,42924.0,0.53577597]
[1642254078257,0.22,42926.0,42925.0,0.11531027]
[1642254078656,0.22,42926.0,42924.0,0.53577597]
[1642254078856,0.22,42926.0,42924.0,0.49097597]
[1642254079312,0.22,42926.0,42923.0,0.11533103]
[1642254079509,0.22,42926.0,42924.0,0.68317196]
[1642254080308,0.22,42926.0,42924.0,0.05823584]
[1642254080909,0.22,42926.0,42921.0,0.12282892]
[1642254082109,0.22,42926.0,42922.0,0.05823824]
[1642254082309,0.22,42926.0,42923.0,0.374882]
[1642254082609,0.22,42926.0,42924.0,0.11510444]
[1642254082854,0.22,42926.0,42924.0,0.11511026]
[1642254083054,0.22,42926.0,42921.0,0.1297761]
[1642254083354,0.22,42926.0,42923.0,0.058232]
[1642254083554,0.22,42926.0,42924.0,0.55652375]
[1642254083755,0.22,42926.0,42924.0,0.43311734]
[1642254083954,0.22,42926.0,42924.0,0.50505453]
[1642254084158,0.22,42926.0,42920.0,1.02384976]
[1642254084463,0.22,42926.0,42922.0,0.68317196]
[1642254085258,0.22,42926.0,42920.0,0.3406778]
[1642254085259,0.22,42926.0,42920.0,1.02384976]
[1642254086060,0.22,42926.0,42920.0,0.3406778]
[1642254086259,0.22,42926.0,42920.0,0.45558411]
[1642254086459,0.22,42926.0,42921.0,0.374882]
[1642254086724,0.22,42926.0,42922.0,0.11402002]
[1642254086918,0.22,42926.0,42923.0,0.374882]
[1642254087718,0.22,42926.0,42925.0,0.26113247]
[1642254087919,0.22,42926.0,42925.0,0.85698721]
[1642254088119,0.22,42926.0,42925.0,1.55587721]
[1642254088523,0.22,42926.0,42925.0,2.79090833]
[1642254088921,0.22,42926.0,42925.0,2.09630833]
[1642254089322,0.22,42926.0,42925.0,1.51127721]
[1642254089626,0.22,42926.0,42925.0,2.61127721]
[1642254089824,0.5539,42947.0,42935.0,0.058216]
[1642254090026,0.5539,42947.0,42937.0,0.058216]
[1642254090224,0.374882,42946.0,42937.0,0.058216]
[1642254090453,0.24475284,42947.0,42942.0,0.34140861]
[1642254090655,0.27680872,42947.0,42942.0,0.78131876]
[1642254091453,0.27680872,42947.0,42943.0,0.11777681]
[1642254091654,0.27680872,42947.0,42942.0,0.78131876]
[1642254092258,0.27680872,42947.0,42942.0,0.43991015]
[1642254092453,0.27680872,42947.0,42936.0,0.88652245]
[1642254093253,0.28977203,42942.0,42937.0,0.31642605]
[1642254093453,0.27680872,42947.0,42938.0,0.44167009]
[1642254093854,0.27680872,42947.0,42938.0,0.38345556]
[1642254094306,0.27680872,42947.0,42937.0,0.31642605]
[1642254094505,0.25391686,42944.0,42937.0,0.31642605]
[1642254094705,0.26821667,42940.0,42937.0,0.31642605]
[1642254094907,0.26821667,42940.0,42935.0,0.58332245]
[1642254095104,0.26821667,42940.0,42936.0,0.374882]
[1642254095306,0.26821667,42940.0,42935.0,0.63571785]
[1642254095307,0.26821667,42940.0,42935.0,0.58332245]
[1642254095905,0.3409825,42937.0,42935.0,0.58332245]
[1642254096106,0.3409825,42937.0,42936.0,0.69871]
[1642254096307,0.26821667,42940.0,42936.0,0.69871]
[1642254096706,0.1257015,42939.0,42936.0,0.69871]
[1642254097308,0.36821667,42940.0,42936.0,0.69871]
[1642254097511,0.2598463,42938.0,42936.0,0.69871]
[1642254097958,1.01815882,42937.0,42936.0,0.69871]
[1642254098157,0.9,42937.0,42936.0,0.69871]
[1642254098556,0.2598463,42938.0,42936.0,0.69871]
[1642254098956,0.2598463,42938.0,42936.0,0.65411]
[1642254100358,0.22270635,42939.0,42936.0,0.65411]
[1642254100558,0.26821667,42940.0,42936.0,0.65411]
[1642254101159,0.23,42938.0,42936.0,0.65411]
[1642254104005,0.23,42938.0,42936.0,0.60941]
[1642254108860,0.23,42938.0,42936.0,0.56471]
[1642254113957,0.23,42938.0,42936.0,0.51991]
[1642254119116,0.23,42938.0,42936.0,0.47501]
[1642254124106,0.23,42938.0,42936.0,0.43041]
[1642254125609,0.23,42938.0,42936.0,0.42311]
[1642254127613,0.23,42938.0,42937.0,0.250001]
[1642254128261,0.23,42938.0,42936.0,0.42311]
[1642254129062,0.23,42938.0,42936.0,0.37841]
[1642254129261,0.56621299,42938.0,42936.0,0.37841]
[1642254131066,1.674882,42937.0,42936.0,0.37841]
[1642254131910,0.374882,42937.0,42936.0,0.37841]
[1642254132112,0.56621299,42938.0,42936.0,0.37841]
[1642254133413,0.288235,42938.0,42936.0,0.37841]
[1642254133613,0.23,42938.0,42936.0,0.37841]
[1642254134112,0.23,42938.0,42936.0,0.33381]
[1642254134312,0.23,42938.0,42937.0,0.32483477]
[1642254134513,0.23,42938.0,42937.0,0.43954851]
[1642254135958,0.23,42938.0,42937.0,0.32483477]
[1642254136563,0.23,42938.0,42937.0,0.43992197]
[1642254136758,0.23,42938.0,42937.0,0.32483477]
[1642254136960,0.23,42938.0,42937.0,0.43835868]
[1642254137158,0.23,42938.0,42937.0,0.32483477]
[1642254137558,0.23,42938.0,42937.0,0.43826419]
[1642254137760,0.23,42938.0,42937.0,0.44027514]
[1642254138860,0.23,42938.0,42937.0,0.32483477]
[1642254139116,0.23,42938.0,42936.0,0.28911]
[1642254142616,0.23,42938.0,42937.0,0.31358498]
[1642254144065,0.22840752,42938.0,42937.0,0.26848498]
[1642254144965,0.22840752,42938.0,42937.0,0.38161988]
[1642254145664,0.22840752,42938.0,42937.0,0.26848498]
[1642254146804,0.22840752,42938.0,42936.0,0.28911]
[1642254147905,0.22840752,42938.0,42937.0,0.4112634]
[1642254149109,0.22840752,42938.0,42937.0,0.3664634]
[1642254150107,0.22840752,42938.0,42936.0,0.28911]
[1642254151456,0.9235213,42937.0,42936.0,0.28911]
[1642254151855,0.3235213,42937.0,42936.0,0.28911]
[1642254154111,0.3235213,42937.0,42936.0,0.24451]
[1642254155114,0.61980135,42937.0,42936.0,0.24451]
[1642254157519,0.3235213,42937.0,42936.0,0.24451]
[1642254157718,0.22840752,42938.0,42936.0,0.24451]
[1642254159256,0.22840752,42938.0,42936.0,0.19961]
[1642254161606,0.22840752,42938.0,42936.0,0.63935633]
[1642254161808,0.22840752,42938.0,42937.0,0.11491881]
[1642254162207,0.22840752,42938.0,42936.0,0.63935633]
[1642254162413,0.22840752,42938.0,42936.0,0.19961]
[1642254162812,0.52884879,42938.0,42936.0,0.19961]
[1642254164208,0.52884879,42938.0,42936.0,0.15491]
[1642254165456,0.22840752,42938.0,42936.0,0.15491]
[1642254166356,0.22840752,42938.0,42937.0,0.35773736]
[1642254166555,0.22840752,42938.0,42937.0,0.47158543]
[1642254166757,0.22840752,42938.0,42937.0,0.35773736]
[1642254168557,0.22840752,42938.0,42937.0,0.47038805]
[1642254168756,0.22840752,42938.0,42937.0,0.35773736]
[1642254169207,0.22840752,42938.0,42937.0,0.31253736]
[1642254169807,0.22840752,42938.0,42936.0,0.15491]
[1642254170212,0.28895409,42937.0,42936.0,0.15491]
[1642254170607,0.22840752,42938.0,42936.0,0.15491]
[1642254174262,0.22840752,42938.0,42936.0,0.11011]
[1642254178717,0.22761752,42938.0,42936.0,0.11011]
[1642254179319,0.22761752,42938.0,42936.0,0.06531]
[1642254181463,0.22761752,42938.0,42937.0,1.8749006]
[1642254181667,0.3094,42956.0,42938.0,0.35]
[1642254181870,0.3094,42956.0,42942.0,0.00126739]
[1642254182464,0.27794885,42953.0,42947.0,0.28083235]
[1642254182864,0.27794885,42953.0,42949.0,0.37200303]
[1642254183564,0.31853844,42954.0,42949.0,0.37200303]
[1642254184110,0.41853844,42954.0,42944.0,0.05238667]
[1642254184311,0.41853844,42954.0,42937.0,0.54483309]
[1642254184312,0.31978918,42954.0,42937.0,0.5436]
[1642254184518,0.41978918,42954.0,42939.0,1.3321]
[1642254185112,0.3345099,42945.0,42941.0,0.30274799]
[1642254185313,0.3345099,42945.0,42942.0,1.706882]
[1642254185920,0.0005336,42955.0,42943.0,0.11415528]
[1642254186316,0.33790033,42951.0,42943.0,0.40405528]
[1642254186514,0.33790033,42951.0,42944.0,1.706882]
[1642254186916,0.34390123,42947.0,42944.0,1.332]
[1642254187217,0.34390123,42947.0,42945.0,0.374882]
[1642254187417,0.34390123,42947.0,42946.0,1.332]
[1642254189370,0.34390123,42947.0,42946.0,1.2872]
[1642254189670,0.33790033,42951.0,42946.0,1.2872]
[1642254190170,0.33790033,42951.0,42948.0,0.32169267]
[1642254190470,0.00125324,42954.0,42948.0,0.32169267]
[1642254190671,0.29606718,42953.0,42948.0,0.32169267]
[1642254191471,0.59356862,42953.0,42948.0,0.32169267]
[1642254191708,0.59356862,42953.0,42946.0,1.2872]
[1642254192309,0.82356862,42953.0,42946.0,1.2872]
[1642254192709,0.82356862,42953.0,42947.0,0.27751649]
[1642254193210,0.82356862,42953.0,42946.0,1.2872]
[1642254193611,0.82356862,42953.0,42946.0,1.2462]
[1642254194410,0.82356862,42953.0,42946.0,1.2016]
[1642254195464,0.82356862,42953.0,42947.0,0.24814802]
[1642254195764,0.82356862,42953.0,42948.0,1.4623]
[1642254196565,0.52606718,42953.0,42948.0,1.4623]
[1642254197465,0.24414789,42951.0,42948.0,1.4623]
[1642254197665,0.52606718,42953.0,42948.0,1.4623]
[1642254198266,0.23,42953.0,42948.0,1.4623]
[1642254199509,0.23,42953.0,42948.0,1.4173]
[1642254199709,0.23,42953.0,42948.0,1.527883]
[1642254199910,0.23,42953.0,42949.0,0.36739792]
[1642254200108,0.23,42953.0,42950.0,1.5073]
[1642254204366,0.23,42953.0,42950.0,1.4627]
[1642254205566,0.288217,42953.0,42950.0,1.4627]
[1642254206170,0.34643629,42953.0,42950.0,1.4627]
[1642254206617,0.44643629,42953.0,42950.0,1.4627]
[1642254206820,0.38821929,42953.0,42950.0,1.4627]
[1642254207217,2.71051272,42953.0,42950.0,1.4627]
[1642254207416,2.5,42951.0,42950.0,1.4627]
[1642254207615,3.033105,42951.0,42950.0,1.4627]
[1642254208714,3.033105,42951.0,42950.0,1.43850511]
[1642254209520,3.033105,42951.0,42950.0,1.39360511]
[1642254212566,2.974882,42951.0,42950.0,1.39360511]
[1642254212967,0.474882,42951.0,42950.0,1.39360511]
[1642254213167,1.3,42951.0,42950.0,1.39360511]
[1642254214208,1.674882,42951.0,42950.0,1.39360511]
[1642254214409,1.674882,42951.0,42950.0,1.34890511]
[1642254214913,0.374882,42951.0,42950.0,1.34890511]
[1642254215110,0.23,42953.0,42950.0,1.34890511]
[1642254215310,0.23,42953.0,42950.0,1.65424957]
[1642254215511,0.225,42953.0,42950.0,1.65424957]
[1642254216512,0.225,42953.0,42950.0,1.34890511]
[1642254219457,0.225,42953.0,42950.0,1.30430511]
[1642254220859,0.058219,42952.0,42950.0,1.30430511]
[1642254223210,0.225,42953.0,42950.0,1.30430511]
[1642254224312,0.058218,42952.0,42950.0,1.30430511]
[1642254224611,0.058218,42952.0,42950.0,1.25960511]
[1642254228660,0.11643967,42952.0,42950.0,1.25960511]
[1642254229513,0.11643967,42952.0,42950.0,1.21500511]
[1642254229914,0.11643967,42952.0,42950.0,0.5746449]
[1642254229915,0.22303967,42952.0,42950.0,0.5746449]
[1642254230114,0.22303967,42952.0,42950.0,0.5721149]
[1642254230115,2.924882,42951.0,42950.0,0.5721149]
[1642254230319,3.02677852,42951.0,42950.0,0.23090997]
[1642254230520,3.12677852,42951.0,42950.0,0.23090997]
[1642254230919,3.37315687,42951.0,42950.0,9.97e-06]
[1642254231117,3.37315687,42951.0,42938.0,0.5862943]
[1642254231118,0.058235,42946.0,42938.0,0.5862943]
[1642254231317,0.00122934,42939.0,42938.0,0.5862943]
[1642254231519,2.58357741,42939.0,42938.0,1.2849643]
[1642254231718,2.58357741,42939.0,42938.0,0.69867]
[1642254231916,3.31727787,42939.0,42938.0,0.69867]
[1642254232718,3.37551587,42939.0,42938.0,0.69867]
[1642254233764,3.37551587,42939.0,42938.0,0.6952]
[1642254234565,3.37551587,42939.0,42938.0,0.6505]
[1642254235566,3.34922068,42939.0,42938.0,0.6505]
[1642254239124,3.54922068,42939.0,42938.0,0.6505]
[1642254239622,3.54922068,42939.0,42938.0,0.6059]
[1642254239822,3.34922068,42939.0,42938.0,0.6059]
[1642254240222,0.79922068,42939.0,42938.0,0.6059]
[1642254240869,2.39922068,42939.0,42938.0,0.6059]
[1642254241866,0.2,42937.0,42930.0,0.5862943]
[1642254242068,0.00123675,42931.0,42930.0,0.5862943]
[1642254242267,3.03723875,42931.0,42930.0,0.5862943]
[1642254242666,3.13723875,42931.0,42930.0,0.5862943]
[1642254242865,3.46800554,42931.0,42930.0,0.5862943]
[1642254243470,3.66800554,42931.0,42930.0,0.5862943]
[1642254243868,3.66800554,42931.0,42922.0,0.5862943]
[1642254243869,1.22228391,42923.0,42922.0,0.5862943]
[1642254244111,1.32301416,42923.0,42922.0,0.5862943]
[1642254244515,1.32301416,42923.0,42922.0,0.5414943]
[1642254244913,0.10125933,42923.0,42922.0,0.5414943]
[1642254245114,0.10125933,42923.0,42918.0,0.68401002]
[1642254245314,0.00125933,42923.0,42918.0,0.68401002]
[1642254245515,0.05951933,42923.0,42918.0,0.68401002]
[1642254245714,0.05951933,42923.0,42918.0,1.68043786]
[1642254245914,0.1770472,42923.0,42918.0,1.68043786]
[1642254246217,0.05951933,42923.0,42918.0,1.68043786]
[1642254246516,0.39319805,42921.0,42918.0,0.68401002]
[1642254247014,0.49319805,42921.0,42918.0,0.68401002]
[1642254247860,0.158261,42921.0,42917.0,0.68401002]
[1642254248062,0.058261,42921.0,42917.0,0.68401002]
[1642254249165,0.12029173,42923.0,42917.0,0.68401002]
[1642254249166,0.17854973,42923.0,42917.0,0.68401002]
[1642254249363,0.00125933,42923.0,42917.0,0.68401002]
[1642254249564,0.00125933,42923.0,42917.0,0.63941002]
[1642254249964,0.3051599,42923.0,42917.0,0.63941002]
[1642254250164,0.10125933,42923.0,42917.0,0.63941002]
[1642254250967,0.1,42923.0,42917.0,0.63941002]
[1642254251267,0.09971969,42923.0,42916.0,0.99642462]
[1642254251469,0.058249,42929.0,42916.0,0.99642462]
[1642254251717,0.058249,42929.0,42921.0,0.25258418]
[1642254251922,0.374882,42928.0,42921.0,0.25258418]
[1642254252118,0.374882,42928.0,42916.0,0.99642462]
[1642254252419,0.34333878,42925.0,42916.0,0.99642462]
[1642254252617,0.058257,42924.0,42916.0,0.99642462]
[1642254253018,0.058257,42924.0,42921.0,0.59359786]
[1642254253817,0.11651,42927.0,42921.0,0.59359786]
[1642254254021,0.058257,42927.0,42921.0,0.59359786]
[1642254254218,0.23,42924.0,42921.0,0.59359786]
[1642254254419,0.23,42924.0,42922.0,0.59359786]
[1642254254718,0.23,42924.0,42922.0,0.54889786]
[1642254255118,0.288256,42924.0,42922.0,0.54889786]
[1642254255564,0.288256,42924.0,42918.0,0.3382206]
[1642254257268,0.374882,42923.0,42915.0,0.27072739]
[1642254257567,0.058259,42922.0,42915.0,0.27072739]
[1642254257767,0.1,42923.0,42915.0,0.27072739]
[1642254258266,0.1,42923.0,42915.0,0.57207102]
[1642254258667,0.34768417,42924.0,42915.0,0.57207102]
[1642254258868,0.3460966,42924.0,42915.0,0.30134363]
[1642254259110,0.4460966,42924.0,42915.0,0.30134363]
[1642254259515,0.33,42924.0,42915.0,0.25654363]
[1642254259911,0.44953391,42924.0,42915.0,0.25654363]
[1642254260111,0.44953391,42924.0,42915.0,0.54434695]
[1642254260513,0.44953391,42924.0,42915.0,0.25654363]
[1642254260713,0.00122412,42922.0,42915.0,0.25654363]
[1642254261714,0.00122412,42922.0,42919.0,0.69101484]
[1642254263065,0.33,42924.0,42919.0,0.69101484]
[1642254263266,0.33,42924.0,42921.0,0.59358773]
[1642254264666,0.33,42924.0,42921.0,0.54898773]
[1642254265268,0.058258,42923.0,42921.0,0.54898773]
[1642254268420,0.11652219,42923.0,42921.0,0.54898773]
[1642254268720,0.11652219,42923.0,42917.0,0.99641696]
[1642254268721,0.058263,42922.0,42917.0,1.6874318]
[1642254269020,0.057743,42922.0,42917.0,1.6874318]
[1642254269419,0.05895514,42922.0,42917.0,1.6874318]
[1642254269624,0.00726675,42922.0,42917.0,1.6424318]
[1642254270222,0.00726675,42922.0,42917.0,0.69101484]
[1642254270663,0.058262,42920.0,42917.0,0.69101484]
[1642254271063,0.058262,42920.0,42916.0,0.69101484]
[1642254273264,0.058262,42920.0,42918.0,0.69101484]
[1642254274120,0.33,42924.0,42919.0,0.11554158]
[1642254274519,0.33,42924.0,42918.0,0.69101484]
[1642254274720,0.33,42924.0,42918.0,0.64641484]
[1642254274924,0.33,42924.0,42920.0,0.27950401]
[1642254275120,0.33,42924.0,42921.0,0.30909699]
[1642254275320,0.33,42924.0,42922.0,0.59219074]
[1642254276824,0.33,42924.0,42921.0,0.30909699]
[1642254277224,0.23,42924.0,42921.0,0.30909699]
[1642254278669,0.23,42924.0,42921.0,0.90128773]
[1642254279670,0.23,42924.0,42921.0,0.85618773]
[1642254280369,0.23,42924.0,42921.0,0.59219074]
[1642254280972,0.288256,42924.0,42921.0,0.59219074]
[1642254281372,0.288256,42924.0,42921.0,0.8814609]
[1642254282028,0.288256,42924.0,42921.0,0.28927016]
[1642254283430,0.288256,42924.0,42920.0,0.27950401]
[1642254284429,0.288256,42924.0,42921.0,0.29654057]
[1642254284831,0.288256,42924.0,42921.0,0.25194057]
[1642254285490,0.288256,42924.0,42920.0,0.27950401]
[1642254286487,0.288256,42924.0,42921.0,0.26743298]
[1642254286687,0.288256,42924.0,42920.0,0.27950401]
[1642254288588,0.288256,42924.0,42917.0,0.59219074]
[1642254288791,0.05826024,42923.0,42918.0,0.69897]
[1642254289119,0.388256,42924.0,42918.0,1.0289003]
[1642254289720,0.388256,42924.0,42918.0,0.95925435]
[1642254290422,0.288256,42924.0,42918.0,0.95925435]
[1642254290626,0.388256,42924.0,42918.0,0.95925435]
[1642254290823,0.388256,42924.0,42918.0,1.29700977]
[1642254291024,0.05826089,42922.0,42918.0,1.29700977]
[1642254291223,0.05826089,42922.0,42918.0,0.95925435]
[1642254291425,0.001266,42919.0,42918.0,0.65427]
[1642254292223,1.8005165,42919.0,42918.0,0.65427]
[1642254292424,1.9005165,42919.0,42918.0,0.65427]
[1642254292625,0.4005165,42919.0,42918.0,0.65427]
[1642254293277,1.3505165,42919.0,42918.0,0.65427]
[1642254294675,1.3505165,42919.0,42918.0,0.60947]
[1642254296718,0.4005165,42919.0,42918.0,0.60947]
[1642254297521,0.1,42919.0,42918.0,0.60947]
[1642254297922,0.058257,42923.0,42918.0,0.60947]
[1642254298325,0.12167059,42922.0,42918.0,0.60947]
[1642254299723,0.05826,42921.0,42918.0,0.56477]
[1642254299926,0.05826327,42920.0,42918.0,0.56477]
[1642254300669,1.31427561,42919.0,42918.0,0.56477]
[1642254300869,1.96427561,42919.0,42918.0,0.55977]
[1642254301073,1.41427561,42919.0,42918.0,0.55977]
[1642254301271,2.36555131,42919.0,42918.0,0.55977]
[1642254301769,4.66171143,42919.0,42918.0,0.55977]
[1642254302170,5.51874834,42919.0,42918.0,0.55977]
[1642254302370,5.7653178,42919.0,42918.0,0.55977]
[1642254302770,5.3653178,42919.0,42918.0,0.55977]
[1642254303771,4.77824643,42919.0,42918.0,0.55977]
[1642254304218,4.78652643,42919.0,42918.0,0.55977]
[1642254304422,2.85696831,42919.0,42918.0,0.55977]
[1642254304719,3.45696831,42919.0,42918.0,0.51517]
[1642254305120,3.46524831,42919.0,42918.0,0.51517]
[1642254305318,4.70624831,42919.0,42918.0,0.51517]
[1642254305519,3.46524831,42919.0,42918.0,0.51517]
[1642254307123,4.70624831,42919.0,42918.0,0.51517]
[1642254307324,4.70624831,42919.0,42918.0,0.50296098]
[1642254307527,3.45696831,42919.0,42918.0,0.50296098]
[1642254307873,4.70624831,42919.0,42918.0,0.50296098]
[1642254308072,3.46524831,42919.0,42918.0,0.50296098]
[1642254308473,3.05696831,42919.0,42918.0,0.50296098]
[1642254308679,1.90696831,42919.0,42918.0,0.50296098]
[1642254308875,1.6344247,42919.0,42918.0,0.50296098]
[1642254309076,1.633149,42919.0,42918.0,0.50296098]
[1642254309477,1.64853986,42919.0,42918.0,0.50296098]
[1642254309674,1.66393072,42919.0,42918.0,0.50296098]
[1642254309875,1.66393072,42919.0,42918.0,0.45826098]
[1642254310275,1.76393072,42919.0,42918.0,0.45826098]
[1642254310676,0.56393072,42919.0,42918.0,0.45826098]
[1642254311078,1.26393072,42919.0,42918.0,0.45826098]
[1642254312522,0.56393072,42919.0,42918.0,0.77502688]
[1642254312723,0.03078172,42919.0,42918.0,0.77502688]
[1642254313522,0.03078172,42919.0,42918.0,0.45826098]
[1642254314723,0.03078172,42919.0,42918.0,0.57162815]
[1642254314925,0.03078172,42919.0,42918.0,0.52682815]
[1642254315570,0.03078172,42919.0,42918.0,0.41346098]
[1642254315966,0.03078172,42919.0,42918.0,0.82235086]
[1642254318670,0.03078172,42919.0,42918.0,1.4145416]
[1642254319819,0.03078172,42919.0,42918.0,1.3699416]
[1642254321123,0.03078172,42919.0,42918.0,0.77775086]
[1642254323082,0.62046962,42924.0,42918.0,0.77775086]
[1642254323083,0.33,42924.0,42919.0,289.96921828]
[1642254323279,0.33,42924.0,42920.0,1.15059447]
[1642254323479,0.23,42924.0,42920.0,1.15059447]
[1642254323679,0.33,42924.0,42920.0,1.15059447]
[1642254324780,0.33,42924.0,42920.0,1.10589447]
[1642254324979,0.23,42924.0,42920.0,1.0291]
[1642254325179,0.33,42924.0,42920.0,1.0291]
[1642254325579,0.61000766,42924.0,42920.0,1.0291]
[1642254326180,0.33,42924.0,42920.0,1.0291]
[1642254326381,0.33,42924.0,42921.0,0.11340485]
[1642254326623,0.33,42924.0,42922.0,1.029]
[1642254329431,0.23,42924.0,42922.0,1.029]
[1642254329729,0.33,42924.0,42922.0,1.029]
[1642254329927,0.33,42924.0,42922.0,0.9843]
[1642254330126,0.33,42924.0,42923.0,0.11234946]
[1642254330378,0.33,42924.0,42922.0,0.9843]
[1642254330573,0.23,42924.0,42922.0,0.9843]
[1642254331773,0.23,42924.0,42923.0,0.11170113]
[1642254331977,0.23,42924.0,42923.0,0.11249829]
[1642254332174,0.23,42924.0,42923.0,0.12390254]
[1642254332376,0.23,42924.0,42923.0,1.84878454]
[1642254332576,0.23,42924.0,42923.0,1.72613711]
[1642254332774,0.23,42924.0,42923.0,2.79983711]
[1642254332976,0.10242432,42942.0,42924.0,0.6]
[1642254333274,0.273349,42938.0,42933.0,0.33538537]
[1642254333575,0.273349,42938.0,42925.0,0.34924803]
[1642254333774,0.12390254,42937.0,42925.0,0.291]
[1642254333974,0.12390254,42937.0,42928.0,0.28210901]
[1642254334519,0.331589,42938.0,42930.0,0.24690098]
[1642254334520,0.431589,42938.0,42930.0,0.24690098]
[1642254334915,0.431589,42938.0,42930.0,0.20220098]
[1642254334916,0.373349,42938.0,42930.0,0.20220098]
[1642254335115,0.273349,42938.0,42930.0,0.20220098]
[1642254335315,0.373349,42938.0,42930.0,0.20220098]
[1642254336415,0.273349,42938.0,42930.0,0.20220098]
[1642254336617,0.603349,42938.0,42930.0,0.20220098]
[1642254337876,0.33,42938.0,42930.0,0.20220098]
[1642254338077,0.23,42938.0,42935.0,0.28228265]
[1642254338277,0.33,42938.0,42935.0,0.28228265]
[1642254339484,0.23,42938.0,42935.0,0.28228265]
[1642254339879,0.23,42938.0,42936.0,1.0735]
[1642254340080,0.23,42938.0,42937.0,0.374882]
[1642254340481,0.23,42938.0,42937.0,0.62227112]
[1642254345024,0.23,42938.0,42937.0,0.57757112]
[1642254345676,0.23,42938.0,42936.0,1.0735]
[1642254345875,0.23,42938.0,42937.0,0.11437101]
[1642254346480,0.23,42938.0,42936.0,1.0735]
[1642254346677,0.56670746,42938.0,42936.0,1.0735]
[1642254346876,0.56670746,42938.0,42936.0,1.0734]
[1642254347076,0.66670746,42938.0,42936.0,1.0734]
[1642254349918,0.66670746,42938.0,42936.0,1.0288]
[1642254350122,0.33,42938.0,42936.0,1.0288]
[1642254351720,0.23,42938.0,42936.0,1.0288]
[1642254351921,0.33,42938.0,42936.0,1.0288]
[1642254354375,0.23,42938.0,42936.0,1.0288]
[1642254354576,0.33,42938.0,42936.0,1.0288]
[1642254354975,0.33,42938.0,42936.0,0.9842]
[1642254355676,0.23,42938.0,42936.0,0.9842]
[1642254355874,0.33,42938.0,42936.0,0.9842]
[1642254356925,0.23,42938.0,42936.0,0.9842]
[1642254357124,0.33,42938.0,42936.0,0.9842]
[1642254358027,0.23,42938.0,42936.0,0.9842]
[1642254360028,0.23,42938.0,42936.0,0.9395]
[1642254360227,0.22,42938.0,42936.0,0.9395]
[1642254365123,0.22,42938.0,42936.0,0.8948]
[1642254366820,0.336486,42938.0,42936.0,0.8948]
[1642254367021,0.436486,42938.0,42936.0,0.8948]
[1642254367220,1.024973,42937.0,42936.0,0.8948]
[1642254367622,1.124973,42937.0,42936.0,0.8948]
[1642254368076,1.183212,42937.0,42936.0,0.8948]
[1642254369078,0.533212,42937.0,42936.0,0.8948]
[1642254369380,0.1,42937.0,42936.0,0.8948]
[1642254369577,0.22605237,42938.0,42936.0,0.8948]
[1642254369977,0.22605237,42938.0,42937.0,0.27065289]
[1642254370578,0.22605237,42938.0,42936.0,0.8948]
[1642254371622,0.53753684,42938.0,42936.0,0.8948]
[1642254371826,0.59577284,42938.0,42936.0,0.8948]
[1642254372023,0.69577284,42938.0,42936.0,0.8948]
[1642254374523,0.38428837,42938.0,42936.0,0.8948]
[1642254374924,0.28428837,42938.0,42936.0,0.8948]
[1642254375224,0.38428837,42938.0,42936.0,0.8499]
[1642254375674,0.32605237,42938.0,42936.0,0.8499]
[1642254376077,0.22605237,42938.0,42936.0,0.8499]
[1642254376274,0.32605237,42938.0,42936.0,0.8499]
[1642254376878,0.32,42938.0,42936.0,0.8499]
[1642254377077,0.373236,42938.0,42936.0,0.8499]
[1642254377477,0.56160503,42938.0,42936.0,0.8499]
[1642254377778,0.66160503,42938.0,42936.0,0.8499]
[1642254378776,0.315,42938.0,42936.0,0.8499]
[1642254379229,0.215,42938.0,42936.0,0.8499]
[1642254379730,0.47100024,42938.0,42936.0,0.8499]